bitfinex-derivatives/quotes_BNBF0:USTF0_20250710
["timestamp","ask_amount","ask_price","bid_price","bid_amount"]
[1752133216970,0.98242751,671.62,671.08,1.6618383]
[1752133217170,0.98242751,671.61,671.08,1.6618383]
[1752133217370,0.98242751,671.63,671.09,1.6618383]
[1752133217571,0.98242751,671.62,671.09,1.6618383]
[1752133217871,0.98242751,671.61,671.09,1.6618383]
[1752133218068,0.98242751,671.63,671.09,1.6618383]
[1752133218373,0.98242751,671.62,671.09,1.6618383]
[1752133218667,0.98242751,671.61,671.09,1.6618383]
[1752133218868,0.98242751,671.63,671.09,1.6618383]
[1752133219073,0.98242751,671.62,671.09,1.6618383]
[1752133219273,0.98242751,671.61,671.09,1.6618383]
[1752133219470,0.98242751,671.63,671.09,1.6618383]
[1752133219771,0.98242751,671.62,671.09,1.6618383]
[1752133219969,0.98242751,671.61,671.09,1.6618383]
[1752133220268,0.98242751,671.63,671.09,1.6618383]
[1752133220473,0.98242751,671.62,671.09,1.6618383]
[1752133220672,0.98242751,671.63,671.09,1.6618383]
[1752133220872,0.98242751,671.62,671.09,1.6618383]
[1752133221070,0.98242751,671.63,671.09,1.6618383]
[1752133221273,0.98242751,671.62,671.09,1.6618383]
[1752133221472,0.98242751,671.63,671.09,1.6618383]
[1752133221674,0.98242751,671.62,671.09,1.6618383]
[1752133221875,0.98281792,671.63,671.09,1.6618383]
[1752133222077,0.98281792,671.62,671.09,1.6618383]
[1752133222272,0.25916865,671.64,671.05,1.6618383]
[1752133222477,0.25916865,671.64,671.03,1.6618383]
[1752133223375,0.25916865,671.64,671.04,1.6618383]
[1752133224377,0.25916865,671.64,671.03,1.6618383]
[1752133224774,0.25916865,671.64,671.05,1.6618383]
[1752133225274,0.25916865,671.64,671.06,1.467]
[1752133229782,1.6682741,671.77,671.06,1.467]
[1752133229979,0.25914645,671.75,671.11,1.6618383]
[1752133230185,0.98281792,671.74,671.11,1.6618383]
[1752133230484,0.98281792,671.74,671.1,1.6618383]
[1752133230778,0.25914645,671.75,671.11,1.6618383]
[1752133231590,0.25914645,671.75,671.1,1.6618383]
[1752133231791,0.25914645,671.75,671.12,1.6618383]
[1752133232487,0.25914645,671.75,671.11,1.6618383]
[1752133233590,0.25914645,671.75,671.1,1.6618383]
[1752133234492,0.25914645,671.75,671.09,1.6618383]
[1752133235293,0.25914645,671.75,671.08,1.6618383]
[1752133237494,0.25914645,671.75,671.1,1.6618383]
[1752133239691,0.25914645,671.75,671.19,1.6618383]
[1752133241794,0.25914645,671.75,671.25,1.6618383]
[1752133242495,0.25914645,671.75,671.24,1.6618383]
[1752133242792,0.25914645,671.75,671.13,2.2151117]
[1752133242793,0.25914645,671.75,671.23,1.6618383]
[1752133244701,0.25914645,671.75,671.24,1.6618383]
[1752133245298,0.25914645,671.75,671.11,2.2151117]
[1752133245299,0.25914645,671.75,671.23,1.6618383]
[1752133247696,0.25914645,671.75,671.06,1.467]
[1752133248900,0.25914645,671.75,671.07,1.6618383]
[1752133250202,0.25914645,671.75,671.06,3.1288383]
[1752133252500,0.25914645,671.75,671.06,1.467]
[1752133257501,0.25914645,671.75,671.13,1.6618383]
[1752133259706,0.25914645,671.75,671.15,1.6618383]
[1752133260105,0.25914645,671.75,671.17,1.6618383]
[1752133262709,0.25914645,671.75,671.18,1.6618383]
[1752133262904,0.25914645,671.75,671.2,1.6618383]
[1752133263103,0.25914645,671.75,671.21,1.6618383]
[1752133263302,0.25914645,671.75,671.2,1.6618383]
[1752133264407,0.25914645,671.75,671.21,1.6618383]
[1752133267109,0.25914645,671.75,671.2,1.6618383]
[1752133269606,0.25914645,671.75,671.21,1.6618383]
[1752133269809,0.25914645,671.75,671.21,3.0828383]
[1752133270409,0.25914645,671.75,671.22,1.6618383]
[1752133273118,0.25914645,671.75,671.23,1.6618383]
[1752133275216,0.25914645,671.75,671.24,1.6618383]
[1752133275418,0.25914645,671.75,671.22,1.6618383]
[1752133275619,0.25914645,671.75,671.21,3.0828383]
[1752133277017,0.25914645,671.75,671.22,1.6618383]
[1752133277721,0.25914645,671.75,671.21,3.0828383]
[1752133278323,0.25914645,671.75,671.21,1.421]
[1752133278520,0.97960754,671.74,671.21,1.421]
[1752133278717,0.97960754,671.73,671.21,1.421]
[1752133278917,0.25914645,671.75,671.21,1.421]
[1752133278918,0.97960754,671.72,671.21,1.421]
[1752133279120,0.97960754,671.71,671.21,1.421]
[1752133279318,0.97960754,671.7,671.21,1.421]
[1752133279522,0.97960754,671.69,671.21,1.421]
[1752133279720,0.25914645,671.75,671.21,1.421]
[1752133279721,0.97960754,671.74,671.21,1.421]
[1752133280023,0.97960754,671.73,671.21,1.421]
[1752133280225,0.97960754,671.72,671.21,1.421]
[1752133280424,0.97960754,671.71,671.21,1.421]
[1752133280625,0.97960754,671.7,671.21,1.421]
[1752133280821,0.97960754,671.69,671.21,1.421]
[1752133281024,0.97960754,671.74,671.21,1.421]
[1752133281221,0.97960754,671.73,671.21,1.421]
[1752133281425,0.97960754,671.72,671.21,1.421]
[1752133281725,0.97960754,671.71,671.21,1.421]
[1752133281925,0.25916672,671.61,671.21,1.421]
[1752133285830,1.6688964,671.6,671.21,1.421]
[1752133286225,1.92806312,671.61,671.21,1.421]
[1752133287329,0.25916672,671.61,671.21,1.421]
[1752133307553,0.97921932,671.6,671.21,1.421]
[1752133307756,0.97921932,671.59,671.21,1.421]
[1752133307953,0.97921932,671.58,671.21,1.421]
[1752133308253,0.97921932,671.57,671.21,1.421]
[1752133308552,0.97921932,671.56,671.21,1.421]
[1752133308752,0.97921932,671.55,671.21,1.421]
[1752133308953,0.97921932,671.54,671.21,1.421]
[1752133309151,0.97921932,671.53,671.21,1.421]
[1752133309359,0.97921932,671.52,671.21,1.421]
[1752133309556,0.97921932,671.51,671.21,1.421]
[1752133309754,0.97921932,671.5,671.21,1.421]
[1752133309954,0.97921932,671.49,671.21,1.421]
[1752133310156,0.97921932,671.48,671.21,1.421]
[1752133310354,0.97921932,671.47,671.21,1.421]
[1752133310554,0.97921932,671.46,671.21,1.421]
[1752133310859,0.97921932,671.45,671.21,1.421]
[1752133311156,0.97921932,671.44,671.21,1.421]
[1752133311357,0.97921932,671.43,671.21,1.421]
[1752133311554,0.97921932,671.42,671.21,1.421]
[1752133311759,0.97921932,671.41,671.21,1.421]
[1752133311960,0.97921932,671.4,671.21,1.421]
[1752133312157,0.97921932,671.39,671.21,1.421]
[1752133312354,0.97921932,671.38,671.21,1.421]
[1752133312557,0.97921932,671.37,671.21,1.421]
[1752133312759,0.97921932,671.36,671.21,1.421]
[1752133312960,0.97921932,671.35,671.21,1.421]
[1752133313261,0.97921932,671.34,671.21,1.421]
[1752133313460,0.97921932,671.33,671.21,1.421]
[1752133313660,0.97921932,671.32,671.21,1.421]
[1752133313859,1.6642295,671.55,671.21,1.421]
[1752133314057,0.97848074,671.54,671.21,1.421]
[1752133314263,1.6642295,671.49,671.21,1.421]
[1752133314463,0.97848074,671.48,671.21,1.421]
[1752133314662,0.97848074,671.47,671.21,1.421]
[1752133314862,0.97848074,671.46,671.21,1.421]
[1752133315060,0.97848074,671.45,671.21,1.421]
[1752133315264,0.97848074,671.44,671.21,1.421]
[1752133315463,0.97848074,671.43,671.21,1.421]
[1752133315664,0.25916672,671.61,671.21,1.421]
[1752133315665,0.97848074,671.42,671.21,1.421]
[1752133315964,0.97848074,671.41,671.21,1.421]
[1752133316162,0.97848074,671.4,671.21,1.421]
[1752133316367,0.97848074,671.39,671.21,1.421]
[1752133316570,0.97848074,671.38,671.21,1.421]
[1752133316866,0.97848074,671.37,671.21,1.421]
[1752133317167,0.97848074,671.36,671.21,1.421]
[1752133317463,0.97848074,671.35,671.21,1.421]
[1752133317667,0.97848074,671.34,671.21,1.421]
[1752133317966,0.97848074,671.33,671.21,1.421]
[1752133318166,0.97848074,671.32,671.21,1.421]
[1752133318467,0.97773588,671.49,671.21,1.421]
[1752133318663,0.97773588,671.48,671.21,1.421]
[1752133318867,0.97773588,671.47,671.21,1.421]
[1752133319162,0.97773588,671.46,671.21,1.421]
[1752133319367,0.97773588,671.45,671.21,1.421]
[1752133319567,0.97773588,671.44,671.21,1.421]
[1752133319765,0.97773588,671.43,671.21,1.421]
[1752133319966,0.97773588,671.42,671.21,1.421]
[1752133320163,0.97773588,671.41,671.21,1.421]
[1752133320370,0.97773588,671.4,671.21,1.421]
[1752133320571,0.97773588,671.39,671.21,1.421]
[1752133320768,0.97766526,671.38,671.21,1.421]
[1752133320969,0.97766526,671.37,671.21,1.421]
[1752133321167,0.97766526,671.36,671.21,1.421]
[1752133321370,0.97766526,671.35,671.21,1.421]
[1752133321569,0.97766526,671.34,671.21,1.421]
[1752133321770,0.97766526,671.33,671.21,1.421]
[1752133321970,0.97766526,671.32,671.21,1.421]
[1752133322181,0.97766526,671.31,671.21,1.421]
[1752133322374,0.97766526,671.3,671.21,1.421]
[1752133322574,0.97766526,671.29,671.21,1.421]
[1752133322870,0.25916672,671.61,671.21,1.421]
[1752133322871,0.97766526,671.28,671.21,1.421]
[1752133323073,0.97766526,671.47,671.21,1.421]
[1752133323269,0.97766526,671.46,671.21,1.421]
[1752133323474,0.97766526,671.45,671.21,1.421]
[1752133323770,0.97766526,671.44,671.21,1.421]
[1752133323970,0.97766526,671.43,671.21,1.421]
[1752133324173,0.97766526,671.42,671.21,1.421]
[1752133324372,0.97766526,671.41,671.21,1.421]
[1752133324574,0.97766526,671.4,671.21,1.421]
[1752133324771,0.97766526,671.39,671.21,1.421]
[1752133324974,0.97766526,671.38,671.21,1.421]
[1752133325174,0.97766526,671.37,671.21,1.421]
[1752133325375,0.97766526,671.36,671.21,1.421]
[1752133325575,0.97766526,671.35,671.21,1.421]
[1752133325873,2.48236752,671.61,671.21,1.421]
[1752133325874,0.97766526,671.34,671.21,1.421]
[1752133326075,0.97766526,671.33,671.21,1.421]
[1752133326272,0.97766526,671.47,671.21,1.421]
[1752133326573,0.97766526,671.46,671.21,1.421]
[1752133326774,0.97766526,671.45,671.21,1.421]
[1752133327080,0.97766526,671.44,670.6,0.25924105]
[1752133327273,0.97766526,671.43,670.6,0.25924105]
[1752133327475,0.97766526,671.42,670.6,0.25924105]
[1752133327673,0.97766526,671.41,670.6,0.25924105]
[1752133327878,0.97766526,671.4,670.6,0.25924105]
[1752133328080,0.97766526,671.39,670.6,0.25924105]
[1752133328278,1.6610757,671.55,670.6,0.25924105]
[1752133328279,0.97766526,671.38,670.6,0.25924105]
[1752133328476,0.97766526,671.37,670.6,0.25924105]
[1752133328676,0.97766526,671.36,670.6,0.25924105]
[1752133328880,0.97766526,671.54,670.6,0.25924105]
[1752133329177,0.97766526,671.53,670.6,0.25924105]
[1752133329378,0.97766526,671.52,670.6,0.25924105]
[1752133329581,0.97766526,671.51,670.6,0.25924105]
[1752133329781,0.97766526,671.5,670.6,0.25924105]
[1752133329980,0.97766526,671.49,670.6,0.25924105]
[1752133330278,0.97766526,671.48,670.6,0.25924105]
[1752133330479,0.97766526,671.47,670.6,0.25924105]
[1752133330678,0.97766526,671.46,670.6,0.25924105]
[1752133330878,0.97766526,671.45,670.6,0.25924105]
[1752133331080,0.97766526,671.44,670.61,1.147]
[1752133331378,0.97766526,671.43,670.61,1.147]
[1752133331582,0.97766526,671.42,670.61,1.147]
[1752133331780,0.97766526,671.6,670.61,1.147]
[1752133331982,0.97766526,671.59,670.61,1.147]
[1752133332179,0.97766526,671.58,670.61,1.147]
[1752133332379,0.97766526,671.57,670.61,1.147]
[1752133332579,0.97766526,671.56,670.61,1.147]
[1752133332780,0.97766526,671.55,670.61,1.147]
[1752133332980,0.9787809,671.54,670.61,1.147]
[1752133333182,0.9787809,671.53,670.61,1.147]
[1752133333383,0.9787809,671.52,670.61,1.147]
[1752133333679,0.9787809,671.51,670.61,1.147]
[1752133333883,0.9787809,671.5,670.61,1.147]
[1752133334089,0.9787809,671.49,670.61,1.147]
[1752133334283,0.9787809,671.48,670.61,1.147]
[1752133334480,0.9787809,671.47,670.61,1.147]
[1752133334784,0.9787809,671.46,670.61,1.147]
[1752133334979,0.9787809,671.45,670.61,1.147]
[1752133335179,0.9787809,671.44,670.61,1.147]
[1752133335379,0.9787809,671.43,670.61,1.147]
[1752133335680,0.9787809,671.57,670.61,1.147]
[1752133335884,0.9787809,671.56,670.61,1.147]
[1752133336083,0.9787809,671.55,670.61,1.147]
[1752133336381,0.9787809,671.54,670.61,1.147]
[1752133336580,0.9787809,671.53,670.61,1.147]
[1752133336785,0.9787809,671.52,670.61,1.147]
[1752133336985,0.9787809,671.51,670.61,1.147]
[1752133337185,0.9787809,671.5,670.61,1.147]
[1752133337387,0.9787809,671.49,670.61,1.147]
[1752133337686,0.9787809,671.48,670.61,1.147]
[1752133337885,0.9787809,671.47,670.61,1.147]
[1752133338085,0.9787809,671.46,670.61,1.147]
[1752133338286,0.9787809,671.45,670.61,1.147]
[1752133338585,0.9787809,671.44,670.61,1.147]
[1752133338786,0.98129335,671.43,670.61,1.147]
[1752133338985,0.98129335,671.42,670.61,1.147]
[1752133339182,0.98129335,671.56,670.61,1.147]
[1752133339488,0.98129335,671.55,670.61,2.8044356]
[1752133339687,0.98129335,671.54,670.61,2.8044356]
[1752133339889,0.98129335,671.53,670.61,2.8044356]
[1752133340087,0.98129335,671.52,670.61,2.8044356]
[1752133340384,0.98129335,671.51,670.62,1.6574356]
[1752133340588,0.98129335,671.5,670.62,1.6574356]
[1752133340787,0.98129335,671.49,670.62,1.6574356]
[1752133340987,0.98129335,671.48,670.62,1.6574356]
[1752133341283,0.98129335,671.47,670.63,1.6574356]
[1752133341482,0.98129335,671.46,670.63,1.6574356]
[1752133341685,0.9809382,671.45,670.63,1.6574356]
[1752133341889,0.9809382,671.44,670.63,1.6574356]
[1752133342090,0.9809382,671.43,670.63,1.6574356]
[1752133342390,0.9809382,671.42,670.64,1.6574356]
[1752133342690,0.9809382,671.5,670.64,1.6574356]
[1752133342889,0.9809382,671.49,670.64,1.6574356]
[1752133343189,0.9809382,671.48,670.67,1.6574356]
[1752133343386,0.9809382,671.47,670.67,1.6574356]
[1752133343590,1.6610757,671.49,670.67,1.6574356]
[1752133344391,1.6610757,671.52,670.61,1.147]
[1752133344696,0.25916672,671.61,670.66,1.6574356]
[1752133345191,0.25916672,671.61,670.68,1.6574356]
[1752133345491,0.25916672,671.61,670.7,1.6574356]
[1752133345692,0.25916672,671.61,670.74,1.6574356]
[1752133348294,0.98116382,671.6,670.74,1.6574356]
[1752133348498,0.98116382,671.59,670.74,1.6574356]
[1752133348795,0.98116382,671.58,670.74,1.6574356]
[1752133349099,0.98116382,671.57,670.74,1.6574356]
[1752133349298,0.98116382,671.56,670.75,1.6574356]
[1752133349595,0.98116382,671.55,670.75,1.6574356]
[1752133349899,0.98116382,671.54,670.75,1.6574356]
[1752133350097,0.98116382,671.53,670.75,1.6574356]
[1752133350295,0.98116382,671.52,670.75,1.6574356]
[1752133350600,0.98116382,671.51,670.75,1.6574356]
[1752133350795,0.98116382,671.5,670.75,1.6574356]
[1752133350995,0.98116382,671.6,670.75,1.6574356]
[1752133351198,0.98116382,671.59,670.75,1.6574356]
[1752133351399,0.98116382,671.58,670.75,1.6574356]
[1752133351600,0.98116382,671.57,670.75,1.6574356]
[1752133351800,0.98116382,671.6,670.75,1.6574356]
[1752133352400,0.98116382,671.6,670.76,1.6574356]
[1752133352700,0.98116382,671.59,670.78,1.6574356]
[1752133352901,0.98116382,671.6,670.78,1.6574356]
[1752133353200,0.98116382,671.59,670.78,1.6574356]
[1752133353396,0.98116382,671.6,670.78,1.6574356]
[1752133353599,0.98116382,671.59,670.78,1.6574356]
[1752133353898,0.25916672,671.61,670.78,1.6574356]
[1752133354502,0.25916672,671.61,670.8,1.6574356]
[1752133354702,0.25916672,671.61,670.74,1.6574356]
[1752133355001,0.25916672,671.61,670.76,1.6574356]
[1752133355397,0.25916672,671.61,670.78,1.6574356]
[1752133355899,0.25916672,671.61,670.79,1.625]
[1752133356298,0.25916672,671.61,670.79,3.2824356]
[1752133364503,0.25916672,671.61,670.87,1.6574356]
[1752133365204,1.24033054,671.61,670.87,1.6574356]
[1752133365409,0.25916672,671.61,670.87,1.6574356]
[1752133365605,0.25916672,671.61,670.88,1.6574356]
[1752133365908,1.24033054,671.61,670.88,1.6574356]
[1752133366109,0.25916672,671.61,670.88,1.6574356]
[1752133366707,1.24033054,671.61,670.88,1.6574356]
[1752133366908,0.25916672,671.61,670.88,1.6574356]
[1752133367814,1.24033054,671.61,670.88,1.6574356]
[1752133368112,0.25916672,671.61,670.88,1.6574356]
[1752133368714,1.24033054,671.61,670.88,1.6574356]
[1752133369013,0.25916672,671.61,670.88,1.66148884]
[1752133369713,0.25916672,671.61,670.89,1.66148884]
[1752133370409,0.98116382,671.6,670.93,1.66148884]
[1752133372111,0.25916672,671.61,670.88,1.66148884]
[1752133372909,0.25916672,671.61,670.87,1.66148884]
[1752133377316,0.25916672,671.61,670.88,1.66148884]
[1752133382019,0.25916672,671.61,670.79,1.625]
[1752133382020,0.25916672,671.61,670.91,1.66148884]
[1752133382520,0.25916672,671.61,670.92,1.66148884]
[1752133382718,0.25916672,671.61,670.91,1.66148884]
[1752133382916,0.98109407,671.6,670.93,1.66148884]
[1752133383520,2.64810158,671.6,670.93,1.66148884]
[1752133384220,2.64810158,671.6,670.92,1.66148884]
[1752133384521,1.66660146,671.59,670.93,1.66148884]
[1752133385818,1.66660146,671.59,670.92,1.66148884]
[1752133386021,1.66660146,671.6,670.91,1.66148884]
[1752133386220,1.66660146,671.6,670.79,1.625]
[1752133386221,1.66660146,671.6,670.92,1.66148884]
[1752133386517,1.66660146,671.59,670.92,1.66148884]
[1752133388420,0.25916672,671.61,670.92,1.66148884]
[1752133388421,1.66660146,671.58,670.92,1.66148884]
[1752133391121,1.66660146,671.58,670.79,1.625]
[1752133391122,1.66660146,671.58,670.9,1.66148884]
[1752133391326,1.66660146,671.59,670.91,1.66148884]
[1752133391525,1.66660146,671.58,670.91,1.66148884]
[1752133391826,1.66660146,671.6,670.89,1.66148884]
[1752133392427,1.66660146,671.6,670.88,1.66148884]
[1752133393929,1.66660146,671.59,670.89,1.66148884]
[1752133395425,1.66660146,671.58,670.9,1.66148884]
[1752133397434,1.66660146,671.57,670.91,1.66148884]
[1752133398636,1.66660146,671.57,670.93,1.66148884]
[1752133399536,1.66660146,671.53,670.99,1.66148884]
[1752133400332,1.66660146,671.57,670.95,1.66148884]
[1752133400733,1.66660146,671.55,670.95,1.66148884]
[1752133401038,1.66660146,671.55,670.97,1.66148884]
[1752133401436,1.66660146,671.52,671.01,1.66148884]
[1752133401636,1.66660146,671.53,671.0,1.66148884]
[1752133401834,1.66660146,671.52,671.01,1.66148884]
[1752133402038,1.66660146,671.53,671.0,1.66148884]
[1752133402235,1.66660146,671.52,671.0,1.66148884]
[1752133402434,1.66660146,671.52,671.01,1.66148884]
[1752133402633,1.66660146,671.52,670.79,1.625]
[1752133402634,1.66660146,671.51,671.02,1.66148884]
[1752133403536,1.66660146,671.49,671.04,1.66148884]
[1752133403935,1.66660146,671.5,671.03,1.66148884]
[1752133404138,1.66660146,671.5,671.04,1.66148884]
[1752133404435,1.66660146,671.55,671.13,1.66148884]
[1752133404735,1.66660146,671.56,671.12,1.66148884]
[1752133405537,1.66660146,671.56,671.11,1.66148884]
[1752133406040,1.66660146,671.57,671.11,1.66148884]
[1752133406441,1.66660146,671.57,671.1,1.66148884]
[1752133406638,1.66660146,671.57,671.11,1.66148884]
[1752133408041,1.66660146,671.58,671.1,1.66148884]
[1752133409441,1.66660146,671.58,671.09,1.66148884]
[1752133411249,2.6492244,671.59,671.09,1.66148884]
[1752133411448,2.6492244,671.58,671.1,1.66148884]
[1752133411749,1.66660146,671.58,671.1,1.66148884]
[1752133412146,2.6492244,671.58,671.1,1.66148884]
[1752133412343,1.66660146,671.58,671.1,1.66148884]
[1752133412747,2.6492244,671.58,671.1,1.66148884]
[1752133412944,1.66660146,671.58,671.1,1.66148884]
[1752133413144,0.98262294,671.57,671.1,1.66148884]
[1752133413350,1.66660146,671.58,671.1,1.66148884]
[1752133413748,2.6492244,671.57,671.11,1.66148884]
[1752133413948,1.66660146,671.57,671.11,1.66148884]
[1752133414554,1.66660146,671.58,671.1,1.66148884]
[1752133414752,2.6492244,671.59,671.09,1.66148884]
[1752133415047,1.66660146,671.59,671.08,1.66148884]
[1752133415248,2.6492244,671.58,671.1,1.66148884]
[1752133415452,1.92576818,671.61,671.06,1.66148884]
[1752133415654,1.66660146,671.61,671.06,1.66148884]
[1752133415851,1.66660146,671.62,671.07,1.66148884]
[1752133416849,1.66660146,671.62,671.08,1.733]
[1752133420256,0.25916189,671.7,671.08,1.733]
[1752133420456,1.6719786,671.64,671.08,1.733]
[1752133420657,0.25916189,671.7,671.15,1.6660622]
[1752133421361,0.25916189,671.7,671.14,1.6660622]
[1752133422561,0.25916189,671.7,671.13,1.6660622]
[1752133422761,0.25916189,671.7,671.14,1.6660622]
[1752133423258,0.25916189,671.7,671.08,1.733]
[1752133426062,0.25916189,671.7,671.14,1.6645187]
[1752133427062,0.25916189,671.7,671.08,1.733]
[1752133427264,1.670858,671.8,671.08,1.733]
[1752133427561,1.92997841,671.82,671.08,1.733]
[1752133428277,0.25912041,671.82,671.08,1.733]
[1752133429461,0.25912041,671.82,671.13,1.6645187]
[1752133430461,0.25912041,671.82,671.12,1.6645187]
[1752133431464,0.25912041,671.82,671.11,1.6645187]
[1752133431866,0.25912041,671.82,671.1,1.6645187]
[1752133432364,0.25912041,671.82,671.09,1.6645187]
[1752133432761,1.670858,671.97,671.09,1.6645187]
[1752133433360,1.670858,671.98,671.09,1.6645187]
[1752133434363,1.670858,671.99,671.08,3.3975187]
[1752133434568,1.670858,672.03,671.08,1.733]
[1752133435265,0.98205046,672.02,671.08,1.733]
[1752133435666,1.670858,672.08,671.08,1.733]
[1752133436268,1.670858,672.09,671.08,1.733]
[1752133436469,0.25909147,671.84,671.08,1.733]
[1752133443978,0.25909147,671.84,671.09,1.6645187]
[1752133444974,0.25909147,671.84,671.13,1.6645187]
[1752133445677,0.25909147,671.84,671.15,1.6645187]
[1752133445875,0.25909147,671.84,671.19,1.6645187]
[1752133446175,0.25909147,671.84,671.18,1.6645187]
[1752133448680,0.25909147,671.84,671.19,1.6645187]
[1752133449077,0.25909147,671.84,671.08,1.733]
[1752133449078,0.25909147,671.84,671.18,1.6645187]
[1752133449282,0.25909147,671.84,671.19,1.6645187]
[1752133450281,0.25909147,671.84,671.17,1.6645187]
[1752133450985,0.25909147,671.84,671.18,1.6645187]
[1752133453382,0.25909147,671.84,671.2,1.6645187]
[1752133456088,0.25909147,671.84,671.21,1.6645187]
[1752133456492,0.25909147,671.84,671.2,1.6645187]
[1752133459390,0.25909147,671.84,671.21,1.6645187]
[1752133459791,0.25909147,671.84,671.19,1.6645187]
[1752133459992,0.25909147,671.84,671.2,1.6645187]
[1752133461393,0.25909147,671.84,671.21,1.6645187]
[1752133462297,0.25909147,671.84,671.1,1.6645187]
[1752133463296,0.25909147,671.84,671.11,1.6645187]
[1752133463597,0.25909147,671.84,671.1,1.6645187]
[1752133464802,0.25909147,671.84,671.08,3.3975187]
[1752133466201,0.25909147,671.84,671.09,1.6645187]
[1752133469609,0.25909147,671.84,671.1,1.6645187]
[1752133471309,0.25909147,671.84,671.11,1.6645187]
[1752133472209,0.25909147,671.84,671.16,1.6645187]
[1752133472709,0.25909147,671.84,671.17,1.6645187]
[1752133473506,0.25909147,671.84,671.18,1.6645187]
[1752133474112,0.25909147,671.84,671.21,1.6645187]
[1752133474509,0.25909147,671.84,671.25,1.6645187]
[1752133474910,0.25909147,671.84,671.26,1.6645187]
[1752133475310,0.25909147,671.84,671.27,1.6645187]
[1752133476013,0.25909147,671.84,671.28,1.6645187]
[1752133476513,0.25909147,671.84,671.29,1.6645187]
[1752133477313,0.25909147,671.84,671.3,1.6645187]
[1752133478011,0.25909147,671.84,671.29,1.6645187]
[1752133478313,0.25909147,671.84,671.3,1.6645187]
[1752133479112,0.25909147,671.84,671.27,1.6645187]
[1752133479314,0.25909147,671.84,671.28,1.6645187]
[1752133480216,0.25909147,671.84,671.29,1.741]
[1752133480515,0.25909147,671.84,671.29,3.4055187]
[1752133481612,0.25909147,671.84,671.3,1.6645187]
[1752133482418,1.23871432,671.84,671.31,1.6645187]
[1752133482615,0.25909147,671.84,671.31,1.6645187]
[1752133482915,1.23871432,671.84,671.31,1.6645187]
[1752133483114,0.25909147,671.84,671.29,1.741]
[1752133486222,0.97962285,671.83,671.29,1.741]
[1752133487418,0.97962285,671.82,671.29,1.741]
[1752133487622,0.97962285,671.83,671.29,1.741]
[1752133487921,0.25909147,671.84,671.29,1.741]
[1752133487922,0.97962285,671.82,671.29,1.741]
[1752133488222,0.97962285,671.81,671.29,1.741]
[1752133488521,0.25909147,671.84,671.29,1.741]
[1752133496932,1.24336835,671.84,671.29,1.741]
[1752133497132,0.25909147,671.84,671.29,1.741]
[1752133497731,1.24336835,671.84,671.29,1.741]
[1752133497931,0.25909147,671.84,671.29,1.741]
[1752133498332,0.98427688,671.83,671.29,1.741]
[1752133500134,0.98427688,671.82,671.29,1.741]
[1752133500433,1.6729047,671.83,671.29,1.741]
[1752133500434,0.98427688,671.81,671.29,1.741]
[1752133500630,2.65718158,671.8,671.29,1.741]
[1752133500830,0.98427688,671.79,671.29,1.741]
[1752133501132,2.65718158,671.78,671.29,1.741]
[1752133501331,0.98427688,671.77,671.29,1.741]
[1752133501634,0.98427688,671.76,671.29,1.741]
[1752133501831,1.6729047,671.79,671.29,1.741]
[1752133501832,0.98427688,671.75,671.29,1.741]
[1752133502035,0.98427688,671.74,671.29,1.741]
[1752133502230,0.98427688,671.73,671.29,1.741]
[1752133502531,0.98427688,671.72,671.29,1.741]
[1752133502728,0.98427688,671.71,671.29,1.741]
[1752133502932,0.98427688,671.78,671.29,1.741]
[1752133503134,1.6729047,671.75,671.29,1.741]
[1752133503335,0.98427688,671.74,671.29,1.741]
[1752133503634,0.98427688,671.73,671.29,1.741]
[1752133503831,0.98427688,671.72,671.29,1.741]
[1752133504038,0.98427688,671.71,671.29,1.741]
[1752133504333,1.6729047,671.75,671.29,1.741]
[1752133504334,0.98427688,671.74,671.29,1.741]
[1752133504532,0.98427688,671.73,671.29,1.741]
[1752133504732,0.98427688,671.72,671.29,1.741]
[1752133504944,0.98427688,671.71,671.29,1.741]
[1752133505137,0.98427688,671.7,671.29,1.741]
[1752133505333,1.6729047,671.68,671.29,1.741]
[1752133505534,2.65718158,671.67,671.29,1.741]
[1752133505733,0.98427688,671.66,671.29,1.741]
[1752133505932,1.6729047,671.61,671.29,1.741]
[1752133506344,1.6729047,671.62,671.29,1.741]
[1752133506636,2.65718158,671.62,671.29,1.741]
[1752133506836,1.6729047,671.62,671.29,1.741]
[1752133507237,1.6729047,671.64,671.29,1.741]
[1752133508037,1.6729047,671.63,671.29,1.741]